Cogmind - Beta 16.1 @@@ ROGUE MODE // 2026.05.01 @ 03:27:46 Player: Thqwib-Linux Result: Destroyed by G-67 Veteran with Field Laser Performance ------------- Evolutions (6) 3000 Regions Visited (11) 2200 Robots Destroyed (137) 685 Value Destroyed (5667) 5667 Prototype IDs (50) 1000 Alien Tech Used (0) 0 Bonus (2384) 2384 TOTAL SCORE: 14936 Bonus ------- High Alert Combat Kills 169 Follower Combat Kills 171 Registered with UFD 300 Met Optimus in HQ 500 Met Warlord at Base 500 MAIN.C Attacked Warlord 500 Warlord Defense Kills 950 Friendly Fire -706 Cogmind --------- Core Integrity 0/1150 Matter 157/300 Energy 100/100 System Corruption 17% Temperature Cool (0) Movement Core (50) Location -4/Factory Parts ------- > --- POWER (2) -------- (None) > --- PROPULSION (4) --- (None) > --- UTILITY (10) ----- Core Analyzer Core Analyzer Advanced Hacking Suite > --- WEAPON (3) ------- (None) > --- INVENTORY (5) ---- Experimental Cloaking Device Authchip [Armor] HERF Cannon Enhanced Nova Cannon Peak State ------------ > --- POWER ------------ Light Antimatter Reactor Meta Core > --- PROPULSION ------- Experimental Flexi-carbon Leg Experimental Flexi-carbon Leg Enhanced Multireflex Exoskeleton > --- UTILITY ---------- Experimental Cooling System Medium Storage Unit Improved Signal Interpreter Tactical Coordination Suite Core Analyzer Core Analyzer Advanced Kinecellerator Improved Weapon Cycler Advanced Hacking Suite Advanced System Shield > --- WEAPON ----------- Plasma Rifle Plasma Rifle Helical Railgun > --- INVENTORY -------- Light Antimatter Reactor Enhanced Multireflex Exoskeleton Advanced Sensor Array Improved Transmission Jammer Experimental Cloaking Device Graphene Brace Improved Hardlight Generator HERF Cannon [Rating: 131] Favorites ----------- Power Meta Core Engine Light Ion Engine Power Core Meta Core Reactor Antimatter Reactor Propulsion Light Treads Treads Light Treads Leg Enhanced Multireflex Exoskeleton Wheel Compact Wheel Hover Unit Combat Gravmag System Utility Core Analyzer Device Advanced Sensor Array Storage Medium Storage Unit Processor Core Analyzer Hackware Advanced Hacking Suite Protection Gun Armor Weapon Assault Rifle Energy Gun Medium Laser Energy Cannon Enhanced Nova Cannon Ballistic Gun Assault Rifle Ballistic Cannon Hardcell Cannon Launcher Thermoblaster Special Weapon Remote Datajack Build | -11 -10 -10 -7 -7 -5 -5 -5 -4 -4 -4 -4 ------- Run | Yrd Mat Sub Rec Scr Fac Upp War Pro Fac Was Fac Slots Evolved 12 | . . . . . 10 . . . 2 . . Power 1 | . . . . . 1 . . . . . . Propulsion 2 | . . . . . 1 . . . 1 . . Utility 8 | . . . . . 7 . . . 1 . . Weapon 1 | . . . . . 1 . . . . . . Parts Attached 141 | 4 4 12 3 2 45 3 10 4 22 16 16 Power 16 | . . 1 . . 4 1 . . 4 3 3 Engine 4 | . . . . . 2 1 . . 1 . . Core 4 | . . 1 . . 2 . . . 1 . . Reactor 8 | . . . . . . . . . 2 3 3 Propulsion 27 | 2 1 3 2 . 8 . 2 2 2 2 3 Treads 5 | 1 1 2 . . 1 . . . . . . Leg 9 | . . . . . . . . 2 2 2 3 Wheel 6 | 1 . 1 2 . 2 . . . . . . Hover 7 | . . . . . 5 . 2 . . . . Flight . | . . . . . . . . . . . . Utility 58 | 1 2 3 1 . 24 2 5 2 6 6 6 Device 32 | 1 . 1 . . 13 . 5 1 5 3 3 Storage 6 | . 1 . 1 . 3 . . . . . 1 Processor 6 | . . . . . 4 . . 1 1 . . Hackware 2 | . . . . . 2 . . . . . . Protection 12 | . 1 2 . . 2 2 . . . 3 2 Artifact . | . . . . . . . . . . . . Weapon 40 | 1 1 5 . 2 9 . 3 . 10 5 4 Energy Gun 10 | . . 2 . 1 2 . . . 5 . . Energy Cannon 1 | . . . . . . . . . . . 1 Ballistic Gun 22 | 1 1 3 . 1 6 . 2 . 3 3 2 Ballistic Cannon 4 | . . . . . 1 . . . . 2 1 Launcher 1 | . . . . . . . 1 . . . . Special Weapon 2 | . . . . . . . . . 2 . . Impact Weapon . | . . . . . . . . . . . . Slashing Weapon . | . . . . . . . . . . . . Piercing Weapon . | . . . . . . . . . . . . Special Melee Weapon . | . . . . . . . . . . . . Unidentified Prototypes 16 | . . 2 . . 2 1 6 3 . 2 . Parts Lost 56 | . . 1 . . 17 . 1 . 18 . 19 Power 7 | . . . . . 1 . . . 3 . 3 Propulsion 4 | . . . . . 1 . . . . . 3 Utility 22 | . . . . . 6 . . . 8 . 8 Weapon 23 | . . 1 . . 9 . 1 . 7 . 5 Highest Loss Streak 12 | . . 1 . . 11 . 1 . 9 . 12 To Critical Strikes 3 | . . . . . 1 . . . 2 . . Average Backups 10 | 4 8 8 9 12 11 9 8 8 8 9 9 Power . | 1 1 1 1 1 . 1 1 . . . . Propulsion 1 | 2 2 . 1 2 3 . . 1 1 1 . Utility 5 | . 2 5 5 7 5 6 5 6 6 4 4 Weapon 1 | 1 2 1 1 1 1 . . . 1 2 4 Tool/Special . | . . . . . . . . . . . . Unused Backups 30 | 4 3 4 2 3 5 1 2 1 1 . 4 Power 4 | . . 2 . 1 1 . . . . . . Propulsion 12 | 4 1 1 2 1 3 . . . . . . Utility 9 | . 2 1 . 1 1 1 1 . 1 . 1 Weapon 3 | . . . . . . . . . . . 3 Tool/Special 2 | . . . . . . . 1 1 . . . Average Slot Usage (%) 92 | . 100 98 98 100 89 99 99 90 85 78 87 Engine 3 | . 14 11 . . 1 5 5 . . . . Core 5 | . . . 8 8 9 5 5 9 7 . . Reactor 1 | . . . . . . . . . 1 8 9 Treads 6 | . 14 24 12 8 2 . . . . . . Leg 4 | . . . . . . . . 9 13 11 13 Wheel 5 | . 13 . 10 16 6 . . . . . . Hover 2 | . . . . . 6 17 17 2 . . . Device 11 | . 13 7 . . 18 16 17 15 16 12 13 Storage 7 | . 14 12 8 8 4 5 5 5 5 5 4 Processor 7 | . . . . . 11 17 16 11 11 15 14 Hackware 3 | . . . . . 1 11 11 11 8 5 5 Protection 6 | . . 5 16 16 4 . . 3 3 6 9 Energy Gun 5 | . 6 6 16 16 5 . . . 2 . . Ballistic Gun 17 | . 21 27 25 25 11 17 16 17 9 10 12 Peak Build Rating 131 | 7 8 38 39 46 90 80 109 110 131 109 114 Average Rating 67 | 6 7 15 38 41 75 77 91 105 118 95 99 On Entrance 57 | 6 7 8 38 39 46 76 80 104 106 75 104 Avg Prop Armor Cover (%) 8 | 12 12 9 9 6 6 . . . . . 12 Naked Turns . | . . . . . . . . . . . . Heaviest Build 90 | 13 18 36 66 68 88 32 45 58 72 79 90 Greatest Support 100 | 16 20 40 40 32 36 32 40 73 100 100 100 Greatest Overweight (x) 6 | . 1 1 2 2 5 . 1 3 . . 6 Average Overweight (x) . | . . . 1 2 2 . . . . . . Largest Inventory Capacity 20 | 8 10 10 20 20 20 10 10 10 10 10 15 Average Capacity 13 | 8 9 10 14 20 16 10 10 10 10 10 11 Most Carried 20 | 6 10 10 11 20 19 10 10 10 10 10 11 Average Carried 10 | 4 8 9 10 14 11 9 9 9 9 9 9 Final Capacity 20 | 8 10 10 20 20 10 10 10 10 10 10 5 Final Carried 20 | 4 9 9 11 20 9 10 10 10 7 10 4 Scrap Suit Usage (%) 4 | . . . . . 23 . . . . . . Parts Cannibalized 5 | . . . . . 5 . . . . . . Class Distribution -------------------- 21% | Tank 16% | Mutant 13% | Hacker-Gunner 8% | Scavenger-Gunner 7% | Scavenger-Tank 7% | Scavenger-Mutant 5% | Skirmisher 4% | Hacker-Mutant 4% | Gunner 3% | Hacker-Skirmisher Dominant Class ---------------- Mutant | -10/Materials Mutant | -10/Subcaves Tank | -7/Recycling Tank | -7/Scraptown Skirmisher | -5/Factory Scavenger-Gunner | -5/Upper Caves Hacker-Gunner | -5/Warlord Hacker-Skirmisher | -4/Proximity Caves Hacker-Mutant | -4/Factory Scavenger-Gunner | -4/Waste Scavenger-Tank | -4/Factory Resources | -11 -10 -10 -7 -7 -5 -5 -5 -4 -4 -4 -4 ----------- Run | Yrd Mat Sub Rec Scr Fac Upp War Pro Fac Was Fac Matter Collected 5057 | 264 174 265 66 20 1196 55 867 372 930 180 668 Remotely . | . . . . . . . . . . . . Salvage Created 6658 | 121 464 128 241 . 1762 . 589 278 2152 . 923 Parts 324 | 4 34 6 11 . 87 . 16 16 92 . 58 Haulers Intercepted 8 | . 2 . . . 3 . . . 2 . 1 Recyclers Shooed 4 | . . . . . . . . . 4 . . Parts Field Recycled . | . . . . . . . . . . . . Retrieved Matter . | . . . . . . . . . . . . Parts Self-Destructed 18 | . . 9 . . . . . 9 . . . Prevented . | . . . . . . . . . . . . Parts Restored 3 | . . . . . . . . . . 3 . Broken 3 | . . . . . . . . . . 3 . Kills | -11 -10 -10 -7 -7 -5 -5 -5 -4 -4 -4 -4 ------- Run | Yrd Mat Sub Rec Scr Fac Upp War Pro Fac Was Fac Combat Hostiles Destroyed 93 | . 11 2 . . 25 . 11 6 25 . 13 Guns 88 | . 11 2 . . 25 . 11 6 23 . 10 Cannons 1 | . . . . . . . . . . . 1 AOE 2 | . . . . . . . . . . . 2 Classes Destroyed 21 | 2 4 3 1 . 4 . 2 2 2 . 1 Worker 10 | . 1 . . . 2 . . . 5 . 2 Builder 8 | . . . 1 . 3 . . . 1 . 3 Tunneler 4 | 1 1 . . . 2 . . . . . . Hauler 8 | . 2 . . . 3 . . . 2 . 1 Recycler 7 | 1 . . 3 . . . . . 3 . . Minesweeper 1 | . . . . . . . . 1 . . . Operator 1 | . . . . . 1 . . . . . . Drone 2 | . . . . . . . . 2 . . . Turret 2 | . . 2 . . . . . . . . . Watcher 1 | . . . . . . . . . . . 1 Swarmer 23 | . 6 . . . 5 . 5 . 7 . . Grunt 22 | . 5 . . . 3 . 4 2 7 . 1 Brawler 1 | . . . . . . . 1 . . . . Protector 1 | . . . . . . . 1 . . . . Sentry 3 | . . . . . 1 . . . . . 2 Specialist 2 | . . . . . . . . . 2 . . Hunter 17 | . . . . . 8 . . . 6 . 3 Programmer 18 | . . . . . 8 . . 2 2 . 6 Behemoth 2 | . . . . . . . . . 1 . 1 Subdweller 2 | . . 2 . . . . . . . . . Federalist 1 | . . 1 . . . . . . . . . Thug 1 | . . . . . . . 1 . . . . Best Kill Streak 11 | 1 5 2 2 . 11 . 4 2 7 . 7 Combat Bots Only 8 | . 5 1 . . 8 . 4 2 5 . 3 Max Kills in Single Turn 4 | 1 1 1 1 . 2 . 2 1 2 . 4 Gunslinging 1 | . . . . . 1 . . . 1 . . Exploded 1 | . . . . . . . . . . . 1 Melee . | . . . . . . . . . . . . Uniques/NPCs Destroyed . | . . . . . . . . . . . . Combat | -11 -10 -10 -7 -7 -5 -5 -5 -4 -4 -4 -4 -------- Run | Yrd Mat Sub Rec Scr Fac Upp War Pro Fac Was Fac Hostile Shots Fired 1223 | . 34 37 . . 255 . 21 38 413 . 425 Missed 398 | . 8 14 . . 54 . 11 16 120 . 175 Hits 825 | . 26 23 . . 201 . 10 22 293 . 250 Melee 1 | . . . . . . . 1 . . . . Projectile 824 | . 26 23 . . 201 . 9 22 293 . 250 Critical Strikes 45 | . 1 . . . 10 . . 4 7 . 23 Actively Blocked 23 | . . . . . . . . . . . 23 Part Disruptions 6 | . . . . . 2 . . 1 . . 3 Damage Taken 13196 | . 255 313 . . 3587 . 387 451 3853 . 4350 Core 1730 | . 46 45 . . 317 . 77 86 434 . 725 Absorbed by Shields 558 | . . . . . 18 . . . 540 . . Redirected to Shielding 103 | . . 3 . . . . . . . . 100 Ignored by Resistances 444 | . . . . . . . . . . . 444 Regen/Repaired (Parts) 811 | . . . . . 150 . . . 368 . 293 Core Remaining (%) 71 | 100 . . . 63 . . . 52 . . . Volleys Fired 402 | 8 32 28 4 . 98 . 49 22 101 . 60 Largest 6 | 2 2 5 5 . 6 . 3 3 3 . 3 Hottest 260 | 60 60 175 175 . 230 . 260 84 188 . 120 Shots Fired 1039 | 16 64 49 20 . 285 1 144 66 229 . 165 Gun 1014 | 16 64 49 20 . 284 1 143 66 227 . 144 Cannon 22 | . . . . . 1 . . . . . 21 Launcher 1 | . . . . . . . 1 . . . . Special 2 | . . . . . . . . . 2 . . Kinetic 794 | 8 51 29 12 . 182 1 143 66 138 . 164 Thermal 209 | . . 20 8 . 90 . 1 . 89 . 1 Explosive . | . . . . . . . . . . . . Electromagnetic 34 | 8 13 . . . 13 . . . . . . Robot Hit Streak 29 | 3 24 8 7 . 13 . 10 12 25 . 29 Robot Miss Streak 6 | 2 2 2 1 . 4 . 5 2 6 . 5 Penetration Max 1 | . . . . . 1 . 1 1 1 . 1 Secondary Targets 14 | . 3 1 . . 5 . 2 . 3 . . Max Gunslinging Chain 1 | . 1 1 . . 1 . 1 . 1 . . Shots Hit Robots 699 | 9 50 23 10 . 180 . 100 47 163 . 117 Core Hits 347 | 3 22 9 6 . 80 . 40 21 96 . 70 Critical Kills 3 | . 1 . . . . . . . 1 . 1 Critical Parts Destroyed 7 | . . . . . 2 . 1 . 3 . 1 Critical Strikes 26 | 1 2 . . . 7 . 1 . 10 . 5 Burn 9 | . . . . . 4 . . . 5 . . Destroy 13 | . 1 . . . 2 . 1 . 5 . 4 Blast 1 | . . . . . . . . . . . 1 Corrupt 3 | 1 1 . . . 1 . . . . . . Melee Attacks . | . . . . . . . . . . . . Impact . | . . . . . . . . . . . . Slashing . | . . . . . . . . . . . . Piercing . | . . . . . . . . . . . . Sneak Attacks . | . . . . . . . . . . . . Combat Hostiles . | . . . . . . . . . . . . Follow-up Attacks . | . . . . . . . . . . . . Damage Inflicted 15964 | 117 652 329 170 . 3376 . 2277 1038 4489 . 3516 Guns 14331 | 117 652 329 170 . 3376 . 2277 1038 4439 . 1933 Cannons 294 | . . . . . . . . . . . 294 Explosions 1273 | . . . . . . . . . . . 1273 Melee . | . . . . . . . . . . . . Ramming 66 | . . . . . . . . . 50 . 16 Kinetic 11328 | 50 479 273 57 . 2206 . 2277 1038 2721 . 2227 Thermal 2914 | . . 56 113 . 1027 . . . 1718 . . Explosive 982 | . . . . . . . . . . . 982 Electromagnetic 674 | 67 173 . . . 143 . . . . . 291 Impact . | . . . . . . . . . . . . Slashing . | . . . . . . . . . . . . Piercing . | . . . . . . . . . . . . Highest Corruption 18 | . 2 2 2 . 18 18 18 1 . . 17 Average Corruption 6 | . 2 2 2 . 13 18 18 1 . . 6 Corruption Purged . | . . . . . . . . . . . . Corruption Blocked . | . . . . . . . . . . . . Effects 140 | . 4 21 2 . 78 5 2 2 . . 26 Message Errors 31 | . 2 3 1 . 15 2 2 1 . . 5 Matter Fused 26 | . . 5 . . 13 . . 1 . . 7 Heat Flow Errors 16 | . . 4 . . 10 2 . . . . . Energy Discharges 16 | . 1 3 1 . 10 . . . . . 1 Parts Rejected 5 | . . . . . . . . . . . 5 Parts Fused 3 | . 1 1 . . 1 . . . . . . Data Loss (minor) 18 | . . . . . 13 . . . . . 5 Data Loss (major) 3 | . . 1 . . 1 . . . . . 1 Misfires 9 | . . 3 . . 5 1 . . . . . Alerts 4 | . . 1 . . 3 . . . . . . Misdirections 2 | . . . . . 1 . . . . . 1 Weapon Failures 7 | . . . . . 6 . . . . . 1 Overload Shots . | . . . . . . . . . . . . Overflow Damage 127 | . . . . . . . . . . . 127 Projectiles 5 | . . . . . . . . . . . 5 Explosions 122 | . . . . . . . . . . . 122 Melee . | . . . . . . . . . . . . Knockbacks 4 | . . . . . . . . . 2 . 2 Impact 2 | . . . . . . . . . 2 . . Kinetic 2 | . . . . . . . . . . . 2 Secondary . | . . . . . . . . . . . . Self-Inflicted Damage 12 | . . . . . . . . . . . 12 Shots 1 | . . . . . . . . . . . 1 Rammed . | . . . . . . . . . . . . Targets Rammed 8 | . . . . . . . . . 7 . 1 Kicked 8 | . . . . . . . . . 7 . 1 Crushed . | . . . . . . . . . . . . Highest Temperature 551 | 20 30 239 153 . 434 262 224 169 551 . 380 Average Temperature 95 | 20 18 86 73 . 87 127 111 66 107 . 170 Received Heat Transfer 1336 | . 93 93 . . 99 . 27 112 450 . 462 Effects 9 | . . . . . 1 . . . 8 . . Shutdowns 4 | . . . . . . . . . 4 . . Energy Bleed 3 | . . . . . 1 . . . 2 . . Matter Decay 1 | . . . . . . . . . 1 . . Short Circuit 1 | . . . . . . . . . 1 . . Siege Activations . | . . . . . . . . . . . . Martial Activations 25 | . . . . . . . . 4 11 1 9 Total Turns 688 | . . . . . . . . 51 354 36 247 Longest Duration 89 | . . . . . . . . 25 89 36 51 Shielding Activations . | . . . . . . . . . . . . Robots Disrupted . | . . . . . . . . . . . . Combat Hostiles . | . . . . . . . . . . . . Robots Corrupted . | . . . . . . . . . . . . Combat Hostiles . | . . . . . . . . . . . . Parts Fried 2 | . 1 . . . 1 . . . . . . Impact Corruptions . | . . . . . . . . . . . . Robots Melted 2 | . . . . . . . . . 2 . . Combat Hostiles 2 | . . . . . . . . . 2 . . Parts Melted 21 | . . . . . 8 . . . 13 . . Heat Transferred 7300 | . . 87 223 . 2665 . . . 4325 . . Parts Sabotaged 2 | . . . . . . . 2 . . . . Parts Stolen . | . . . . . . . . . . . . Parts Stripped . | . . . . . . . . . . . . Power Chain Reactions . | . . . . . . . . . . . . Alert | -11 -10 -10 -7 -7 -5 -5 -5 -4 -4 -4 -4 ------- Run | Yrd Mat Sub Rec Scr Fac Upp War Pro Fac Was Fac Maximum Alert Level 2 | . 1 . . . 1 . . . 2 . 2 Low Security (%) 86 | 100 89 . 100 . 96 . . . 71 100 69 Level 1 5 | . 10 . . . 3 . . . 13 . . Level 2 8 | . . . . . . . . . 14 . 30 Level 3 . | . . . . . . . . . . . . Level 4 . | . . . . . . . . . . . . Level 5 . | . . . . . . . . . . . . High Security . | . . . . . . . . . . . . Max Security . | . . . . . . . . . . . . Peak Influence 658 | 5 212 . 90 . 216 . . . 476 156 658 Initial 156 | . 3 . 40 . . . . . . 156 . Average 100 | 1 92 . 28 . 83 . . . 125 39 171 Influence Increases 3903 | 10 388 166 103 . 897 . 265 105 895 . 1074 Destroy 0b10 Robot/C 1860 | . 220 100 . . 500 . 200 80 500 . 260 Destroy 0b10 Robot/NC 215 | 10 20 . 20 . 55 . 5 15 55 . 35 Destroy Leader 324 | . 44 . . . 104 . . 10 92 . 74 Allied During Kill 6 | . . 6 . . . . . . . . . Successful Hack 87 | . 14 . 23 . 23 . . . 22 . 5 Select Force Hacks 120 | . 30 . 60 . . . . . 30 . . Disable Machine 510 | . . . . . 45 . . . 75 . 390 Destroy Structure 166 | . . . . . 20 . . . 76 . 70 Lose Combat Pursuer 615 | . 60 60 . . 150 . 60 . 45 . 240 Influence Decreases 3316 | 5 236 239 187 . 685 139 170 273 447 448 487 Entered New Map 734 | . 2 76 44 . . 79 73 168 . 292 . Time Decay 1952 | 5 234 83 143 . 515 60 87 105 267 156 297 Lost Part 560 | . . 10 . . 170 . 10 . 180 . 190 Lost Ally 70 | . . 70 . . . . . . . . . Squads Dispatched 39 | . 2 . . . 14 . . . 12 . 11 Investigation 10 | . 1 . . . 2 . . . 5 . 2 Extermination 9 | . . . . . 4 . . . 2 . 3 Reinforcement 14 | . 1 . . . 5 . . . 4 . 4 Assault 3 | . . . . . . . . . 1 . 2 Garrison 3 | . . . . . 3 . . . . . . Intercept . | . . . . . . . . . . . . Searches Triggered . | . . . . . . . . . . . . Construction Impeded 4 | . . . . . 1 . . . 2 . 1 Haulers Reinforced 2 | . . . . . 2 . . . . . . Active Scanning Responses . | . . . . . . . . . . . . Cargo Convoy Interrupts . | . . . . . . . . . . . . Stealth | -11 -10 -10 -7 -7 -5 -5 -5 -4 -4 -4 -4 --------- Run | Yrd Mat Sub Rec Scr Fac Upp War Pro Fac Was Fac Distress Signals 13 | . 1 . . . 2 . 1 . 5 . 4 Communications Jammed 1 | . . . . . . . . . 1 . . Distress Signals 1 | . . . . . . . . . 1 . . Times Spotted 233 | . 15 11 . . 36 . 78 5 47 . 41 Peak Tracking Total 18 | . 5 6 . . 6 . 18 2 8 . 10 Tactical Retreats 20 | . 2 2 . . 5 . 4 . 1 . 6 Traps | -11 -10 -10 -7 -7 -5 -5 -5 -4 -4 -4 -4 ------- Run | Yrd Mat Sub Rec Scr Fac Upp War Pro Fac Was Fac Traps Triggered 4 | . 1 . . . 2 . . . 1 . . Indirectly . | . . . . . . . . . . . . Trap Hack Attempts . | . . . . . . . . . . . . Triggered . | . . . . . . . . . . . . Disarmed . | . . . . . . . . . . . . Reprogrammed . | . . . . . . . . . . . . Reused . | . . . . . . . . . . . . Traps Extracted . | . . . . . . . . . . . . Installed . | . . . . . . . . . . . . Triggered . | . . . . . . . . . . . . Most Traps Carried 1 | . . 1 . . . . . . . . . Machines | -11 -10 -10 -7 -7 -5 -5 -5 -4 -4 -4 -4 ---------- Run | Yrd Mat Sub Rec Scr Fac Upp War Pro Fac Was Fac Machines Disabled 37 | . . 2 . . 3 . 1 . 5 . 26 Max in Single Turn 8 | . . 1 . . 1 . 1 . 1 . 8 Garrison Access 2 | . . . . . . . . . 1 . 1 Machines Repaired . | . . . . . . . . . . . . Machines Dismantled . | . . . . . . . . . . . . Machines Sabotaged . | . . . . . . . . . . . . Overloaded Fab Kills . | . . . . . . . . . . . . Hacking | -11 -10 -10 -7 -7 -5 -5 -5 -4 -4 -4 -4 --------- Run | Yrd Mat Sub Rec Scr Fac Upp War Pro Fac Was Fac Machines Accessed 45 | . 6 1 4 1 13 . 2 . 11 . 7 Terminals 21 | . 5 . 2 . 7 . . . 4 . 3 Fabricators 2 | . . . . . 1 . . . . . 1 Repair Stations 6 | . . . . . 2 . . . 2 . 2 Recycling Units 10 | . 1 . 2 . 2 . . . 4 . 1 Scanalyzers 1 | . . . . . 1 . . . . . . Garrison Access 1 | . . . . . . . . . 1 . . Total Hacks 104 | . 19 2 5 1 27 . 7 . 27 . 16 Successful 54 | . 10 2 5 1 8 . 7 . 15 . 6 Failed 50 | . 9 . . . 19 . . . 12 . 10 Catastrophic 10 | . 2 . . . 5 . . . 1 . 2 Database Lockouts . | . . . . . . . . . . . . Manual 48 | . 17 . 4 . 12 . . . 8 . 7 Terminals 52 | . 18 . 3 . 16 . . . 9 . 6 Fabricators 2 | . . . . . 1 . . . . . 1 Repair Stations 23 | . . . . . 5 . . . 10 . 8 Recycling Units 13 | . 1 . 2 . 4 . . . 5 . 1 Scanalyzers 1 | . . . . . 1 . . . . . . Garrison Access 3 | . . . . . . . . . 3 . . Terminal Hacks 23 | . 5 2 2 1 2 . 7 . 4 . . Record 2 | . . 1 . 1 . . . . . . . Prototype ID Bank 10 | . 2 . 1 . 1 . 6 . . . . Open Door 1 | . . . . . . . 1 . . . . Branch Access Points 1 | . . . . . 1 . . . . . . Terminal Index 1 | . . . . . . . . . 1 . . Alert Level 1 | . . . . . . . . . 1 . . Transport Status 1 | . 1 . . . . . . . . . . Recall Extermination 1 | . . . . . . . . . 1 . . Recall Reinforcements 1 | . . . . . . . . . 1 . . Zone Layout 3 | . 2 . 1 . . . . . . . . Proto ID Catalog 1 | . . 1 . . . . . . . . . Fabricator Hacks 2 | . . . . . 1 . . . . . 1 Network Status 2 | . . . . . 1 . . . . . 1 Repair Station Hacks 10 | . . . . . 3 . . . 3 . 4 Scan Component 6 | . . . . . 2 . . . 2 . 2 Repair 4 | . . . . . 1 . . . 1 . 2 Recycling Unit Hacks 1 | . . . . . . . . . 1 . . Retrieve Components 1 | . . . . . . . . . 1 . . Scanalyzer . | . . . . . . . . . . . . Garrison Access Hacks 1 | . . . . . . . . . 1 . . Seal Access 1 | . . . . . . . . . 1 . . Unauthorized Hacks 17 | . 5 . 3 . 2 . . . 6 . 1 Terminals 7 | . 4 . 1 . 1 . . . 1 . . Botnet 6 | . 4 . 1 . 1 . . . . . . Disrupt 1 | . . . . . . . . . 1 . . Fabricators . | . . . . . . . . . . . . Repair Stations 1 | . . . . . . . . . 1 . . Patch 1 | . . . . . . . . . 1 . . Recycling Units 9 | . 1 . 2 . 1 . . . 4 . 1 Tunnel 4 | . 1 . 2 . . . . . 1 . . Fedlink 5 | . . . . . 1 . . . 3 . 1 Scanalyzers . | . . . . . . . . . . . . Garrison Access . | . . . . . . . . . . . . Data Cores Recovered . | . . . . . . . . . . . . Used . | . . . . . . . . . . . . Hacking Detections 28 | . 5 . 2 . 10 . . . 6 . 5 Full Trace Events 2 | . . . . . 1 . . . . . 1 Feedback Events . | . . . . . . . . . . . . Feedback Blocked . | . . . . . . . . . . . . Robot Schematics Acquired . | . . . . . . . . . . . . Robots Built . | . . . . . . . . . . . . Authchips . | . . . . . . . . . . . . Time . | . . . . . . . . . . . . Total Robot Build Rating . | . . . . . . . . . . . . Part Schematics Acquired . | . . . . . . . . . . . . Parts Built . | . . . . . . . . . . . . Authchips . | . . . . . . . . . . . . Time . | . . . . . . . . . . . . Total Part Build Rating . | . . . . . . . . . . . . Part Studies Acquired . | . . . . . . . . . . . . Parts Repaired 4 | . . . . . 1 . . . 1 . 2 Time 230 | . . . . . 32 . . . 16 . 182 Parts Recycled . | . . . . . . . . . . . . Recycled Matter . | . . . . . . . . . . . . Retrieved Matter . | . . . . . . . . . . . . Retrieved Components 10 | . . . . . . . . . 10 . . Parts Scanalyzed . | . . . . . . . . . . . . Part Schematics Acquired . | . . . . . . . . . . . . Parts Damaged . | . . . . . . . . . . . . Bothacking | -11 -10 -10 -7 -7 -5 -5 -5 -4 -4 -4 -4 ------------ Run | Yrd Mat Sub Rec Scr Fac Upp War Pro Fac Was Fac Used RIF Installer . | . . . . . . . . . . . . Robots Hacked 2 | . . . . . . . . . 2 . . Non-combat 2 | . . . . . . . . . 2 . . Combat . | . . . . . . . . . . . . Robot Hacks Applied 2 | . . . . . . . . . 2 . . find_chute 1 | . . . . . . . . . 1 . . find_recycling 1 | . . . . . . . . . 1 . . Relay Couplers Released 1 | . . . . . . . . . . . 1 Machine Destruction 1 | . . . . . . . . . . . 1 Fabnet Peak Effective % . | . . . . . . . . . . . . Robots Rewired . | . . . . . . . . . . . . Allies Hacked . | . . . . . . . . . . . . Hacks Repelled 1 | . . . . . . . 1 . . . . Allies | -11 -10 -10 -7 -7 -5 -5 -5 -4 -4 -4 -4 -------- Run | Yrd Mat Sub Rec Scr Fac Upp War Pro Fac Was Fac Total Allies 5 | . . 5 . . . . . . . . . Largest Group 4 | . . 4 . . . . . . . . . Highest-Rated Group 76 | . . 76 . . . . . . . . . Highest-Rated Ally 19 | . . 19 . . . . . . . . . Initial UFD Resources 67 | . . . . . 39 49 49 51 51 67 67 Total Orders . | . . . . . . . . . . . . Ally Attacks 36 | . . 36 . . . . . . . . . Total Damage 589 | . . 589 . . . . . . . . . Kills 8 | . . 8 . . . . . . . . . Allies Corrupted . | . . . . . . . . . . . . Allies Melted 2 | . . . . . . . 2 . . . . Intel | -11 -10 -10 -7 -7 -5 -5 -5 -4 -4 -4 -4 ------- Run | Yrd Mat Sub Rec Scr Fac Upp War Pro Fac Was Fac Active Infowar (turns) 4970 | 32 546 . . . 1877 130 718 630 1037 . . Sensors 3927 | . . . . . 1487 130 718 630 962 . . Seismic 968 | 32 546 . . . 390 . . . . . . Cloaking 2 | . . . . . . . 2 . . . . Jamming 175 | . . . . . . . . . 175 . . Robot Analysis Total . | . . . . . . . . . . . . Derelict Logs Recovered 5 | . . 1 . 2 . 2 . . . . . Drone Launches . | . . . . . . . . . . . . Drone Recoveries . | . . . . . . . . . . . . Exploration | -11 -10 -10 -7 -7 -5 -5 -5 -4 -4 -4 -4 ------------- Run | Yrd Mat Sub Rec Scr Fac Upp War Pro Fac Was Fac Turns Passed 11491 | 53 578 1747 426 1803 2206 130 758 630 1341 645 1174 Spaces Moved 8305 | 23 415 1041 301 1374 1531 195 834 593 920 439 639 Core 11 | . . . . . . . . . . . 11 Treads 972 | . 3 933 36 . . . . . . . . Legs 2441 | . . . . . . . . 454 920 439 628 Wheels 3115 | 23 412 108 265 1374 933 . . . . . . Hover 1766 | . . . . . 598 195 834 139 . . . Flight . | . . . . . . . . . . . . Fastest Speed 48 | 100 100 120 130 130 58 62 48 52 96 106 50 Average Speed 108 | 100 109 156 133 130 94 62 55 92 105 113 111 Slowest Speed 350 | 100 160 240 160 130 184 62 108 200 220 212 350 Overloaded Moves 91 | . . . . . . . . 5 57 18 11 Propulsion Burnouts . | . . . . . . . . . . . . Robots Hopped . | . . . . . . . . . . . . Potential Cave-ins . | . . . . . . . . . . . . Cave-ins Triggered . | . . . . . . . . . . . . Exploration Rate (%) 54 | 3 68 65 67 86 27 42 87 74 24 87 18 Regions Visited 11 Branch Regions 6 Pre-discovered Areas 8 | . 1 1 2 2 . . . . 2 . . Known Exits Taken 4 | . . . . . 1 1 1 1 . . . Unknown Exits Taken 5 | 1 1 1 1 1 . . . . . . . Scrap Searched 12 | . . 6 . 4 . 1 . 1 . . . Spaces Dug . | . . . . . . . . . . . . Terrain Destroyed 106 | . . . . . 5 . 7 10 39 . 45 Melee . | . . . . . . . . . . . . Projectile 64 | . . . . . 5 . 7 10 30 . 12 AOE 42 | . . . . . . . . . 9 . 33 Terrain Rammed . | . . . . . . . . . . . . Walls Destroyed . | . . . . . . . . . . . . Machines Disabled . | . . . . . . . . . . . . Actions | -11 -10 -10 -7 -7 -5 -5 -5 -4 -4 -4 -4 --------- Run | Yrd Mat Sub Rec Scr Fac Upp War Pro Fac Was Fac Total 10081 | 36 480 1121 317 1392 2112 206 1066 641 1146 581 983 Wait 967 | . 14 24 . . 362 . 152 5 55 113 242 Move 8295 | 22 414 1040 300 1373 1530 194 833 592 920 438 639 Hop . | . . . . . . . . . . . . Pick Up 79 | . 9 7 6 13 18 1 3 4 10 4 4 Fast Attach 73 | 1 2 3 1 1 18 1 8 4 12 12 10 Attach 53 | . . 5 . . 24 3 1 1 12 1 6 Detach 32 | . . 3 . . 15 3 1 1 6 1 2 Swap 73 | 3 2 5 2 1 21 1 11 3 11 5 8 Drop 99 | 2 7 6 4 4 26 3 8 9 12 7 11 Fire 402 | 8 32 28 4 . 98 . 49 22 101 . 60 Melee . | . . . . . . . . . . . . Ram . | . . . . . . . . . . . . Kick 8 | . . . . . . . . . 7 . 1 Crush . | . . . . . . . . . . . . Escape Stasis . | . . . . . . . . . . . . Rewire . | . . . . . . . . . . . . Trap . | . . . . . . . . . . . . Miscellaneous . | . . . . . . . . . . . . Route ------- -11/Scrapyard -10/Materials (discovered 4 exits: [*Mat x2] / [*Min] / *Sub) -10/Subcaves -7/Recycling -7/Scraptown (discovered 2 exits: *Fac x2) -5/Factory (discovered 4 exits: *Upp x2 / *Ext x2) -5/Upper Caves (discovered 2 exits: *Upp / *War) -5/Warlord -4/Proximity Caves -4/Factory -4/Waste -4/Factory History --------- Turn | Location | Event 7 | -11/Scrapyard | Discovered new exit (range 3) 54 | -11/Scrapyard | Entered Materials 55 | -10/Materials | Met a group of wandering Federalists 240 | -10/Materials | Discovered new exit (range 15) 307 | -10/Materials | Build established: Mutant 486 | -10/Materials | Discovered new exit (range 8) 497 | -10/Materials | Discovered new exit (range 8) 586 | -10/Materials | Discovered new exit (range 7) 632 | -10/Materials | Entered Subcaves 633 | -10/Subcaves | Continued accompanying wandering Federalists (1) 789 | -10/Subcaves | Visited triangular shrine 799 | -10/Subcaves | Found Prototype Device 799 | -10/Subcaves | Identified V3-11A's Pendant 804 | -10/Subcaves | Befriended Subdweller 904 | -10/Subcaves | Befriended Subdweller 1194 | -10/Subcaves | Learned location of Storage (-7) 1402 | -10/Subcaves | A Subdweller sparked back to life 1402 | -10/Subcaves | A Subdweller sparked back to life 1414 | -10/Subcaves | Befriended Subdweller 1424 | -10/Subcaves | Befriended Subdweller 1700 | -10/Subcaves | Ambushed by Subdwellers from Twisted Machinery 1714 | -10/Subcaves | Befriended Subdweller 1717 | -10/Subcaves | Found Prototype Protection 1718 | -10/Subcaves | Identified Gun Armor 1719 | -10/Subcaves | Attached Gun Armor, gained temporary slots: Weapon x2 2016 | -10/Subcaves | Build established: Gunner 2162 | -10/Subcaves | Visited 4L-MR0's lab 2182 | -10/Subcaves | Found Meta Core 2184 | -10/Subcaves | Attached Meta Core, gained temporary slots: Propulsion, Utility, Weapon 2323 | -10/Subcaves | Discovered new exit (range 13) 2345 | -10/Subcaves | Lost 4 allies 2379 | -10/Subcaves | Entered Recycling 2537 | -7/Recycling | Build established: Tank 2772 | -7/Recycling | Scanned before Scraplab entrance 2790 | -7/Recycling | Entered Scraplab 2801 | -7/Recycling | Discovered new exit (range 3) 2805 | -7/Recycling | Entered Scraptown 2805 | -7/Scraptown | System corruption cleaned by C-Scrubber 2961 | -7/Scraptown | Delivered V3-11A's Pendant to T0-NE2 in exchange for information 3144 | -7/Scraptown | Discovered new exit (range 7) 3221 | -7/Scraptown | Scanned Subdweller tech in exchange for log data 3224 | -7/Scraptown | Learned location of Zion (-6) 3225 | -7/Scraptown | Learned location of Armory (-4) 3265 | -7/Scraptown | Visited Spacefarers 3284 | -7/Scraptown | Visited CPS Storage 3346 | -7/Scraptown | Visited SPCMW 3357 | -7/Scraptown | Visited Shadow of the Wyrm 3435 | -7/Scraptown | Visited Fellowship of the Rings 3461 | -7/Scraptown | Visited Scrapoid Research Area 3690 | -7/Scraptown | Visited UFD Registry 3690 | -7/Scraptown | Registered with UFD as "Fluxshell" 3733 | -7/Scraptown | Visited Modified Component R&D 3772 | -7/Scraptown | Visited Scrapoid Pod Storage 3800 | -7/Scraptown | Visited Botcube Research 3891 | -7/Scraptown | Found Scrap Suit 3927 | -7/Scraptown | Visited Cartography Club 3952 | -7/Scraptown | Visited DA-N13 Charitable Foundation 3957 | -7/Scraptown | Found DCF Scrap (26 items) 4004 | -7/Scraptown | Visited Supply Room 4034 | -7/Scraptown | Visited Curators Association 4054 | -7/Scraptown | Visited Chapter 10 4072 | -7/Scraptown | Visited Scrap Suit Storage 4165 | -7/Scraptown | Delivered Scrap Shield to a Scientist 4532 | -7/Scraptown | Met Optimus 4532 | -7/Scraptown | Accepted into 0bPrime 4602 | -7/Scraptown | Discovered new exit (range 5) 4608 | -7/Scraptown | Entered Factory 4608 | -5/Factory | Evolved 10 slots: Power x1, Propulsion x1, Utility x7, Weapon x1 4815 | -5/Factory | Repaired Spk. Treads 4899 | -5/Factory | Build established: Derelict-Executioner 5048 | -5/Factory | System corruption reached 10% 5092 | -5/Factory | Destroyed 8 combat bots 5136 | -5/Factory | Lost 11 parts (1p1n3u6w) 5143 | -5/Factory | Discovered new exit (range 15) 5459 | -5/Factory | Identified exit to Upper Caves 5459 | -5/Factory | Identified exit to Extension 5532 | -5/Factory | Garrison activated, responded to threat 5591 | -5/Factory | Build established: Skirmisher 6225 | -5/Factory | Build established: Scavenger-Mutant 6368 | -5/Factory | Lost 4 parts (2u2w) 6631 | -5/Factory | Found Imp. Powered Armor 6742 | -5/Factory | Loaded intel: 8 recycling unit locations 6814 | -5/Factory | Entered Upper Caves 6816 | -5/Upper Caves | UFD Scientist delivered a prototype 6818 | -5/Upper Caves | Found Prototype Protection 6818 | -5/Upper Caves | Identified Enh. Scrap Shield 6888 | -5/Upper Caves | Learned location of 1 exit from Proximity Caves 6894 | -5/Upper Caves | Learned Factory terminal intel 6938 | -5/Upper Caves | Discovered new exit (range 10) 6940 | -5/Upper Caves | A Derelict revealed a hidden shortcut to "reach the base" 6943 | -5/Upper Caves | Identified exit to Warlord 6943 | -5/Upper Caves | Identified exit to Upper Caves 6944 | -5/Upper Caves | Entered Warlord 6966 | -5/Warlord | System corruption cleaned by Quarantine Array 7100 | -5/Warlord | Rebuked by Warlord 7125 | -5/Warlord | Warlord's base attacked by MAIN.C 7139 | -5/Warlord | Found Prototype Device 7139 | -5/Warlord | Identified Exp. Focal Shield 7146 | -5/Warlord | Found Prototype Device 7146 | -5/Warlord | Identified Exp. Cloaking Device 7211 | -5/Warlord | Build established: Hacker-Gunner 7405 | -5/Warlord | Lost 3 allies 7475 | -5/Warlord | Warlord forces counterattacked 7510 | -5/Warlord | Spotted Executioner 7549 | -5/Warlord | P-70 Sage assimilated allied 6U-34L(g) 7560 | -5/Warlord | Spotted B-86 Titan 7562 | -5/Warlord | Spotted Executioner 7566 | -5/Warlord | Spotted B-75 Beast 7580 | -5/Warlord | Spotted Executioner 7604 | -5/Warlord | Spotted Striker 7619 | -5/Warlord | Found Prototype Device 7619 | -5/Warlord | Identified Adv. Kinecellerator 7631 | -5/Warlord | Spotted Executioner 7632 | -5/Warlord | P-80 Master assimilated allied 7X-GTB(g) 7696 | -5/Warlord | Discovered new exit (range 12) 7701 | -5/Warlord | Identified exit to Proximity Caves 7702 | -5/Warlord | Entered Proximity Caves 7703 | -4/Proximity Caves | Identified exit to Factory 7712 | -4/Proximity Caves | Lost 32 allies 7803 | -4/Proximity Caves | Found Prototype Device 7803 | -4/Proximity Caves | Identified Exp. Thermal Shield 7825 | -4/Proximity Caves | Found Prototype Processor 7825 | -4/Proximity Caves | Identified Exp. Melee Analysis Suite 8225 | -4/Proximity Caves | Build established: Hacker-Skirmisher 8332 | -4/Proximity Caves | Entered Factory 8332 | -4/Factory | Evolved 2 slots: Propulsion x1, Utility x1 8333 | -4/Factory | Loaded intel: 26 terminal locations 8434 | -4/Factory | Repaired Autogun 8715 | -4/Factory | Discovered new exit (range 3) 8716 | -4/Factory | Identified exit to Upper Caves 9029 | -4/Factory | Loaded intel: 7 recycling unit locations 9029 | -4/Factory | Learned location of Protoforge (-2) 9164 | -4/Factory | Build established: Hacker-Gunner 9178 | -4/Factory | Spotted B-86 Titan 9319 | -4/Factory | Destroyed B-86 Titan 9398 | -4/Factory | Lost 5 parts (2p3u) 9582 | -4/Factory | First assault squad dispatched 9673 | -4/Factory | Sucked down chute 9673 | -4/Factory | Entered Waste 9673 | -4/Waste | The area was eerily silent 9699 | -4/Waste | Lost 9 parts (1p3u5w) 10001 | -4/Waste | Discovered new exit (range 15) 10292 | -4/Waste | Found Prototype Device 10292 | -4/Waste | Identified Exp. EM Shield 10308 | -4/Waste | Identified exit to Factory 10318 | -4/Waste | Entered Factory 10327 | -4/Factory | Build established: Scavenger-Gunner 10621 | -4/Factory | Repaired Enh. Multireflex Exoskeleton 10737 | -4/Factory | Build established: Scavenger-Tank 10843 | -4/Factory | Repaired Adv. Phase Shifter 10927 | -4/Factory | Spotted B-86 Titan 11009 | -4/Factory | Destroyed B-86 Titan 11079 | -4/Factory | Loaded intel: 8 recycling unit locations 11296 | -4/Factory | Core integrity fell below 50% 11322 | -4/Factory | Lost 5 parts (3u2w) 11403 | -4/Factory | System corruption reached 10% 11478 | -4/Factory | Core integrity fell below 20% 11484 | -4/Factory | Lost 12 parts (3p3n3u3w) 11492 | -4/Factory | Destroyed by G-67 Veteran with Field Laser Last Messages --------------- Exoskeleton rejected. 11453_ Imp. Core Shielding destroyed. 11453_ K-01 Serf collects debris. 11453_ Acquired Enh. Multireflex Exoskeleton. 11456_ K-01 Serf collects debris. 11458_ Subcomponent Replicator disabled. 11459_ K-01 Serf collects debris. 11470_ System corrupted: Graphene Brace rejected. 11470_ Acquired Graphene Brace. 11471_ Terminal disabled. 11484_ Imp. Signal Interpreter destroyed. 11485_ Dropped Lrg. Storage Unit. 11487_ Connecting with Terminal... 11487_ ALERT: Suspicious activity at Terminal F017. Dispatching Investigation squad. 11488_ Dropped Enh. Multireflex Exoskeleton. 11489_ Acquired Exp. Cloaking Device. 11492_ System corrupted: Graphene Brace rejected. Map ----- +----------------------------------------------------+ | ???????????????????????????????# | | ???????????????????????????????# | | ???????????????????????????????# | | ???????????????????????????????# | | ???????????????????????????????# | | ????????????????????############ | | ????????????????????# | | ????????????????????# ! | | ????????????????????# G" | | ????????????????????# " | | ?????????##?#####???# | | ?????????? """" #???# | | ?????????? """" #???# | | ???????????"""" ????# | | ???????????"""" ????# " """ | | ???????????? ?????# """" """"" | | ???????????? ?????# """"" """" | | ??????????###+###???# | | ??????????# #???# """ | | ??????????# T"g ##### """"" !!! | | ??????????# """"" !!! | | ??????????# g g###### !!! | | ??????????# #????# """ | | ??????????## x ##????# """"" ? | | ???????????#pp #?????# """"" ?????? | | ???????????# @#?????# ?????? | | ???????????#[ #?????# ?????????? | | ?????????###!! ###???#######??????????? | | ?????????# [ #????????????????????? | | ?????????# = #????????????????????? | | ?????????# "" #????????????????????? | | ?????????# T" #????????????????????? | | ?????????# #????????????????????? | | ?????????# [ #????????????????????? | | ?????????# #????????????????????? | | ?????????#########????????????????????? | | ??????????????????????????????????????? | | ??????????????????????????????????????? | | ??????????????????????????????????????? | | ??????????????????????????????????????? | | ??????????????????????????????????????? | | ??????????????????????????????????????? | | ??????????????????????????????????????? | | ??????????????????????????????????????? | | ??????????????????????????????????????? | | ??????????????????????????????????????? | | ??????????????????????????????????????? | | ??????????????????????????????????????? | | ??????????????????????????????????????? | | ??????????????????????????????????????? | +----------------------------------------------------+ Best States ------------- Heat Dissipation 81 Energy Generation 37 Energy Capacity 550 Matter Stores 300 Matter Capacity 300 Sight Range 16 Robot Scan Range 16 Terrain Scan Density 10 Jamming Range 14 Armor Coverage 800 Resistance: KI 30 Core Shielding 30 Weapon Cycling 20 Phase Shifting 15 Evasion (%) 82 Targeting Accuracy 6 Core Analysis 9 Recoil Reduction 7 Kinecelleration 50 Offensive Hacking 14 Defensive Hacking 14 Authchip Count 2 Item Schematics ----------------- None Robot Schematics ------------------ None Fabricated ------------ Nothing Repaired ---------- Spk. Treads | 49% | -5/Factory Autogun | 13% | -4/Factory Enh. Multireflex Exoskeleton | 41% | -4/Factory Adv. Phase Shifter | 4% | -4/Factory Studied --------- None Alien Tech Used ----------------- None Achievements -------------- Loot Taster Challenges ------------ None Game ------ Seed VoltaicImpulseAmplifier Manual? 0 Play Time 02:14:34 Cumulative 253.3 hours Start 2026.05.01 @ 01:07:43 End 2026.05.01 @ 03:27:46 Sessions 1 Manual Loads 0 Difficulty Rogue Special Mode None Game No. 137 Rogue 137 Adventurer 0 Explorer 0 Win Type - Total 9 Types 5/0/2/1/0/0/0/1/0/0 Lore% 72 Gallery% 65 Achievement% 57 Wizard Run 0 Options --------- Layout 2 ASCII 0 Keyboard 1 Movement Arrows Keybinds 0 Fullscreen 2 Font 24/Terminus Map View 50x44 Zoom Use 0% Tactical HUD 1 Map Filters NONE Filters NONE Steam 1 RUN: c3f32704-044c-4c0e-a715-c2b0613a9cad